[Event "5th Cesme Open 2017"]
[Site "Cesme"]
[Date "2017.06.14"]
[Round "5.10"]
[White "Rzayev, Bahruz"]
[Black "Severcan, Sedat Sabri"]
[Result "1/2-1/2"]
[ECO "B40"]
[WhiteElo "2392"]
[BlackElo "1915"]
[Annotator "ChessBase"]
[PlyCount "99"]
[EventType "swiss"]
[EventCountry "TUR"]
[SourceTitle "playchess.com"]
[Source "ChessBase"]
[SourceQuality "1"]
[TimeControl "5400+30"]

1. e4 e6 2. b3 d5 3. Bb2 c5 {[%emt 0:04:00]} 4. exd5 {[%emt 0:05:00]} exd5 {[%emt 0:00:30]} 5. Nf3 {[%emt 0:00:30]} Nf6 {[%emt 0:01:30]} 6. d4 {[%emt 0:02:30]} Be7 {[%emt 0:05:30]} 7. Be2 {[%emt 0:06:30]} O-O {[%emt 0:00:30]} 8. O-O {[%emt 0:00:30]} Nc6 {[%emt 0:03:30]} 9. Nc3 {[%emt 0:02:30]} Bg4 {[%emt 0:08:30]} 10. dxc5 {[%emt 0:01:30]} Bxc5 {[%emt 0:01:30]} 11. Na4 {[%emt 0:00:30]} Be7 {[%emt 0:00:30]} 12. Nd4 {[%emt 0:01:30]} Bd7 {[%emt 0:06:30]} 13. Bf3 {[%emt 0:03:30]} Rc8 {[%emt 0:02:30]} 14. Nc3 {[%emt 0:06:30]} Nxd4 {[%emt 0:03:30]} 15. Qxd4 {[%emt 0:04:30]} Bc5 {[%emt 0:01:30]} 16. Qd3 {[%emt 0:00:30]} Bc6 {[%emt 0:05:30]} 17. Rad1 {[%emt 0:05:30]} Bb6 {[%emt 0:03:30]} 18. Ne2 {[%emt 0:01:30]} Bc7 {[%emt 0:04:30]} 19. Nd4 {[%emt 0:01:30]} Qd6 {[%emt 0:01:30]} 20. g3 {[%emt 0:00:00]} Bd7 {[%emt 0:00:30]} 21. Nb5 {[%emt 0:05:00]} Bxb5 {[%emt 0:01:30]} 22. Qxb5 {[%emt 0:00:30]} Qc6 {[%emt 0:00:30]} 23. Qd3 {[%emt 0:00:30]} Bb6 {[%emt 0:04:30]} 24. Bxf6 {[%emt 0:01:30]} Qxf6 {[%emt 0:00:30]} 25. Bxd5 {[%emt 0:00:30]} Rc3 {[%emt 0:02:30]} 26. Qe2 {[%emt 0:03:30]} Rc7 {[%emt 0:04:30]} 27. Rd3 {[%emt 0:03:30]} Re7 {[%emt 0:00:30]} 28. Qd2 {[%emt 0:00:00]} g6 {[%emt 0:01:30]} 29. c4 {[%emt 0:04:00]} Rfe8 {[%emt 0:01:30]} 30. Rf3 {[%emt 0:00:30]} Qd4 {[%emt 0:01:30]} 31. Qg5 {[%emt 0:00:30]} Kg7 {[%emt 0:01:30]} 32. b4 {[%emt 0:03:30]} f6 {[%emt 0:00:30]} 33. Qc1 {[%emt 0:00:00]} a5 {[%emt 0:01:30]} 34. a3 {[%emt 0:03:00]} axb4 {[%emt 0:01:30]} 35. axb4 {[%emt 0:00:30]} Ba7 {[%emt 0:01:30]} 36. Rf4 {[%emt 0:02:30]} Qe5 {[%emt 0:02:30]} 37. Rd1 {[%emt 0:02:30]} g5 {[%emt 0:04:30]} 38. Rf3 {[%emt 0:00:30]} h5 {[%emt 0:01:44]} 39. Kg2 {[%emt 0:01:30]} g4 {[%emt 0:01:22]} 40. Rf4 {[%emt 0:00:00]} Qg5 {[%emt 0:02:18]} 41. Qb1 {[%emt 0:02:00]} Re2 {[%emt 0:03:43]} 42. Bxb7 {[%emt 0:02:30]} h4 {[%emt 0:01:29]} 43. Bc8 {[%emt 0:10:21]} h3+ {[%emt 0:07:03]} 44. Kf1 {[%emt 0:00:08]} Qxf4 {[%emt 0:02:02]} 45. Rd7+ {[%emt 0:03:26]} Kf8 {[%emt 0:01:33]} 46. Rf7+ {[%emt 0:00:03]} Kxf7 {[%emt 0:00:13]} 47. Qh7+ {[%emt 0:00:02]} Kf8 {[%emt 0:00:41]} 48. Qh8+ {[%emt 0:00:02]} Kf7 {[%emt 0:00:50]} 49. Qh7+ {[%emt 0:00:03]} Kf8 {[%emt 0:00:21]} 50. Qh8+ {[%emt 0:00:02]} 1/2-1/2

[Event "5th Cesme Open 2017"]
[Site "Cesme"]
[Date "2017.06.14"]
[Round "5.11"]
[White "Seyhanoglu, Deniz"]
[Black "Guseynov, Alihan"]
[Result "0-1"]
[ECO "A36"]
[WhiteElo "2043"]
[BlackElo "2346"]
[Annotator "NA"]
[PlyCount "54"]
[EventType "swiss"]
[EventCountry "TUR"]
[SourceTitle "playchess.com"]
[Source "ChessBase"]
[SourceQuality "1"]
[TimeControl "5400+30"]

{[%evp 8,52,8,32767,32767,32767,4,32767,32767,32767,32767,32767,13,0,0,0,4,0,1,-34,-34,-50,-35,-81,-92,-85,-89,-199,-143,-313,32767,32767,32767,-330,-308,-407,-420,-422,-447,-506,-529,-508,-550,32767,-633,-645,-624]} 1. c4 {[%emt 0:00:30]} g6 {[%emt 0:01:00]} 2. g3 {[%emt 0:00:00]} Bg7 {[%emt 0:00:30]} 3. Bg2 {[%emt 0:00:00]} c5 {[%emt 0:00:30]} 4. e3 {[%emt 0:00:00]} Nc6 {[%emt 0:00:30]} 5. Ne2 {[%emt 0:00:00]} e5 {[%emt 0:01:30]} 6. Nbc3 {[%emt 0:00:00]} Nge7 {[%emt 0:00:30]} 7. O-O {[%emt 0:00:00]} O-O {[%emt 0:05:00]} 8. a3 {[%emt 0:04:00]} a5 {[%emt 0:02:30] A36: Symmetrical English vs ...g6: 4 Bg2 Bg7} 9. Nd5 {[%emt 0:01:30]} (9. d3 d6 10. Rb1 Rb8 11. Nd5 Nxd5 12. cxd5 Ne7 13. b4 cxb4 14. axb4 b5 15. bxa5 Qxa5 16. Bd2 b4 17. Qb3 Bg4 18. Nc1 Rb6 19. Na2 Be2 {1-0 (57) Nakamura,H (2779)-Dominguez Perez,L (2739) Doha 2016}) 9... d6 {[%emt 0:07:30]} 10. Nec3 {[%emt 0:00:30]} Nxd5 {[%emt 0:11:30]} 11. Nxd5 {[%emt 0:00:30]} Be6 $146 {[%emt 0:17:30]} ({Predecessor:} 11... a4 12. d3 Bd7 13. Nc3 Na5 14. Nxa4 Nxc4 15. Nxc5 Nxb2 16. Bxb2 dxc5 {0-1 (54) Moor,R (2367)-Ekstroem,R (2491) Scuol 2001}) 12. d3 {[%emt 0:01:30]} Ne7 {[%emt 0:04:30]} 13. Rb1 {[%emt 0:03:30]} Nxd5 {[%emt 0:02:30]} 14. cxd5 {[%emt 0:01:30]} Bd7 {[%emt 0:00:30]} 15. b4 {[%emt 0:01:30]} cxb4 {[%emt 0:02:30]} 16. axb4 {[%emt 0:00:30]} a4 {[%emt 0:02:30]} 17. b5 {[%emt 0:05:30]} (17. Re1 $17) 17... a3 {[%emt 0:04:30]} 18. Qb3 {[%emt 0:13:30]} (18. Rb3 $142 a2 19. Bb2) 18... a2 {[%emt 0:01:30]} 19. Ra1 {[%emt 0:00:30]} Qa5 {[%emt 0:00:30]} 20. b6 {[%emt 0:05:30]} Rfc8 {[%emt 0:06:30]} 21. Bb2 {[%emt 0:09:30]} Qb5 {[%emt 0:01:30]} 22. Qxb5 {[%emt 0:04:30]} Bxb5 {[%emt 0:00:30]} 23. Rfc1 {[%emt 0:03:30]} Rxc1+ {[%emt 0:00:30]} 24. Rxc1 {[%emt 0:04:30]} Bxd3 {[%emt 0:00:30]} 25. e4 {[%emt 0:02:30]} Bh6 {[%emt 0:01:30]} 26. Rd1 {[%emt 0:01:30]} Bc2 $19 {[%emt 0:02:30]} 27. Rf1 {[%emt 0:04:30]} Ra6 {[%emt 0:01:30]} 0-1

[Event "5th Cesme Open 2017"]
[Site "Cesme"]
[Date "2017.06.14"]
[Round "5.12"]
[White "Kara, Yanki"]
[Black "Lomsadze, Davit"]
[Result "0-1"]
[ECO "A05"]
[WhiteElo "1946"]
[BlackElo "2341"]
[Annotator "ChessBase"]
[PlyCount "63"]
[EventType "swiss"]
[EventCountry "TUR"]
[SourceTitle "playchess.com"]
[Source "ChessBase"]
[SourceQuality "1"]
[TimeControl "5400+30"]

1. Nf3 {[%emt 0:06:30]} Nf6 {[%emt 0:01:00]} 2. g3 {[%emt 0:00:30]} b5 {[%emt 0:00:30]} 3. Bg2 {[%emt 0:00:30]} Bb7 {[%emt 0:00:30]} 4. Na3 {[%emt 0:00:30]} a6 {[%emt 0:00:30]} 5. c4 {[%emt 0:00:00]} c6 {[%emt 0:04:30]} 6. O-O {[%emt 0:06:00]} e6 {[%emt 0:00:30]} 7. b3 {[%emt 0:02:30]} Be7 {[%emt 0:01:30]} 8. Bb2 {[%emt 0:01:30]} O-O {[%emt 0:00:00]} 9. d4 {[%emt 0:01:30]} d6 {[%emt 0:01:00]} 10. Qd3 {[%emt 0:01:30]} Nbd7 {[%emt 0:01:30]} 11. e4 {[%emt 0:12:30]} e5 {[%emt 0:02:30]} 12. Rfe1 {[%emt 0:07:30]} Re8 {[%emt 0:08:30]} 13. Rad1 {[%emt 0:13:30]} Bf8 {[%emt 0:06:30]} 14. dxe5 {[%emt 0:03:30]} dxe5 {[%emt 0:01:30]} 15. Nb1 {[%emt 0:09:30]} Qb6 {[%emt 0:01:30]} 16. Bh3 {[%emt 0:00:30]} Rad8 {[%emt 0:02:30]} 17. Qc2 {[%emt 0:01:30]} h5 {[%emt 0:01:30]} 18. Bf1 {[%emt 0:06:30]} Ng4 {[%emt 0:01:30]} 19. Re2 {[%emt 0:02:30]} b4 {[%emt 0:08:30]} 20. h3 {[%emt 0:00:30]} Ngf6 {[%emt 0:00:30]} 21. Red2 {[%emt 0:01:39]} c5 {[%emt 0:04:30]} 22. Ng5 {[%emt 0:01:48]} Qc7 {[%emt 0:02:30]} 23. h4 {[%emt 0:04:14]} Ra8 {[%emt 0:06:30]} 24. f3 {[%emt 0:06:22]} Nb8 {[%emt 0:02:30]} 25. Bh3 {[%emt 0:00:09]} Bc8 {[%emt 0:00:30]} 26. a3 {[%emt 0:03:50]} a5 {[%emt 0:00:30]} 27. a4 {[%emt 0:00:57]} Nc6 {[%emt 0:00:30]} 28. Re2 {[%emt 0:00:32]} Nd4 {[%emt 0:00:30]} 29. Bxd4 {[%emt 0:00:06]} cxd4 {[%emt 0:01:30]} 30. Kg2 {[%emt 0:00:54]} Nd7 {[%emt 0:00:30]} 31. Bxd7 {[%emt 0:00:25]} Qxd7 {[%emt 0:00:30]} 32. Rh1 {[%emt 0:02:50]} 0-1

[Event "5th Cesme Open 2017"]
[Site "Cesme"]
[Date "2017.06.14"]
[Round "5.13"]
[White "Erece, Ece Alkim"]
[Black "Sevgi, Volkan"]
[Result "0-1"]
[ECO "B15"]
[WhiteElo "1753"]
[BlackElo "2192"]
[Annotator "NA"]
[PlyCount "70"]
[EventType "swiss"]
[EventCountry "TUR"]
[SourceTitle "playchess.com"]
[Source "ChessBase"]
[SourceQuality "1"]
[TimeControl "5400+30"]

{[%evp 13,66,41,72,65,73,60,79,55,74,32,74,40,113,39,32767,129,232,147,164,93,118,116,125,98,152,32767,200,119,100,108,140,60,51,45,32767,32767,44,26,35,32767,47,32767,32767,32767,32767,32767,32767,32767,32767,-404,-1163,-1492,-2723,-1446,-2672]} 1. e4 c6 2. d4 g6 3. Nc3 {[%emt 0:00:30]} d5 {[%emt 0:07:00]} 4. h3 {[%emt 0:00:30]} Bg7 {[%emt 0:00:30]} 5. Nf3 {[%emt 0:00:30]} Nh6 {[%emt 0:00:30]} 6. Bd3 {[%emt 0:00:30]} O-O {[%emt 0:05:30] B15: Caro-Kann: 3 Nc3: 3...g6 and 3...dxe4 4 Nxe4 Nf6 5 Nxf6+ exf6} (6... f6 7. O-O Nf7 8. Ne2 O-O 9. Ng3 e5 10. dxe5 fxe5 11. c3 Na6 12. Bc2 Nc7 13. Be3 b6 14. a4 Ne6 {1-0 (54) Ortiz Suarez,I (2601)-Ipatov,A (2625) Panama City 2013}) 7. Qe2 {[%emt 0:03:30]} dxe4 {[%emt 0:03:30] LiveBook: 7 Games} 8. Nxe4 {[%emt 0:01:30]} Nf5 {[%emt 0:01:30]} 9. c3 {[%emt 0:00:30]} Qc7 {[%emt 0:02:30] [#]} 10. O-O {[%emt 0:04:30]} ({White should play} 10. h4 $1 $16) 10... Nd7 {[%emt 0:01:30]} 11. a4 $146 {[%emt 0:05:30]} ({Predecessor:} 11. Re1 Nb6 12. Nc5 Re8 13. Bxf5 Bxf5 14. g4 Bc8 15. Qe4 Nd5 16. Ne5 {1-0 (48) Nikolovski,N (1978)-Romcovici,V (2152) Veliko Tarnovo 2013}) 11... a5 {[%emt 0:04:30]} 12. Re1 {[%emt 0:08:30]} b6 {[%emt 0:04:30]} 13. Bg5 {[%emt 0:02:30]} (13. g4 $16 Nd6 14. Bf4) 13... f6 {[%emt 0:14:30]} 14. Bd2 {[%emt 0:01:30]} e5 {[%emt 0:00:00]} (14... Kh8 $16 {was called for.}) 15. Bc4+ {[%emt 0:05:30]} Kh8 {[%emt 0:01:00]} 16. g4 {[%emt 0:07:30]} (16. dxe5 $142 Nxe5 17. Bf4) 16... Nd6 {[%emt 0:02:30]} 17. Nxd6 {[%emt 0:00:30]} Qxd6 {[%emt 0:00:30]} 18. dxe5 {[%emt 0:00:30]} fxe5 {[%emt 0:01:30]} ({Better is} 18... Nxe5 19. Bf4 Be6 20. Bxe6 (20. Nxe5 fxe5 21. Bxe5 Bxe5 $14) 20... Qxe6) 19. Ng5 {[%emt 0:01:30]} Bb7 {[%emt 0:02:30]} (19... Nc5 $16 {was worth a try.} 20. Be3 Qe7) 20. Ne4 {[%emt 0:11:30]} (20. Rad1 $18) 20... Qc7 {[%emt 0:03:30]} 21. Rad1 {[%emt 0:01:30]} Nf6 {[%emt 0:01:30]} 22. Bg5 {[%emt 0:01:30]} Nd5 $1 {[%emt 0:01:30]} 23. Qd2 {[%emt 0:11:30]} Rf7 {[%emt 0:15:30]} 24. Bh6 {[%emt 0:02:30]} Raf8 {[%emt 0:01:30]} 25. Bxg7+ {[%emt 0:00:30]} Kxg7 {[%emt 0:00:00]} 26. g5 {[%emt 0:02:30]} Qe7 {[%emt 0:04:00]} 27. Bxd5 {[%emt 0:02:30]} cxd5 {[%emt 0:00:30]} 28. Nf6 {[%emt 0:00:30]} h6 {[%emt 0:02:30]} 29. h4 {[%emt 0:00:30]} hxg5 {[%emt 0:00:30]} 30. hxg5 {[%emt 0:00:00]} Rh8 {[%emt 0:01:29]} 31. Ng4 $2 {[%emt 0:05:55] [#]} (31. Qe2 $1 $11) 31... d4 $1 {[%emt 0:00:37]} 32. Nh6 {[%emt 0:00:18] [#]} Rxh6 $1 {[%emt 0:04:25]} 33. gxh6+ {[%emt 0:00:31]} Kh7 $19 {[%emt 0:00:08]} 34. f4 {[%emt 0:01:51]} Qh4 {[%emt 0:00:20]} 35. Rxe5 {[%emt 0:00:42]} Qg3+ {[%emt 0:00:18]} 0-1

[Event "5th Cesme Open 2017"]
[Site "Cesme"]
[Date "2017.06.14"]
[Round "5.19"]
[White "Gokerkan, Cem Kaan"]
[Black "Nalbant, Tuna Onat"]
[Result "1-0"]
[ECO "B20"]
[WhiteElo "2333"]
[BlackElo "1993"]
[Annotator "ChessBase"]
[PlyCount "109"]
[EventType "swiss"]
[EventCountry "TUR"]
[SourceTitle "playchess.com"]
[Source "ChessBase"]
[SourceQuality "1"]
[TimeControl "5400+30"]

1. e4 {[%emt 0:08:30]} c5 {[%emt 0:01:00]} 2. Ne2 {[%emt 0:00:30]} d6 {[%emt 0:00:30]} 3. g3 {[%emt 0:00:00]} Nc6 {[%emt 0:03:30]} 4. Bg2 {[%emt 0:00:00]} g6 {[%emt 0:00:30]} 5. c3 {[%emt 0:00:30]} Bg7 {[%emt 0:01:30]} 6. d4 {[%emt 0:00:30]} e5 {[%emt 0:12:30]} 7. dxc5 {[%emt 0:02:30]} dxc5 {[%emt 0:00:30]} 8. Qxd8+ {[%emt 0:03:30]} Kxd8 {[%emt 0:01:30]} 9. Na3 {[%emt 0:00:30]} b6 {[%emt 0:04:30]} 10. Nc4 {[%emt 0:01:30]} Ba6 {[%emt 0:00:30]} 11. Ne3 {[%emt 0:00:00]} Nge7 {[%emt 0:07:30]} 12. Ng1 {[%emt 0:06:00]} Kc7 {[%emt 0:06:30]} 13. Nd5+ {[%emt 0:00:30]} Kd6 {[%emt 0:00:30]} 14. Nxe7 {[%emt 0:04:30]} Kxe7 {[%emt 0:01:30]} 15. Nf3 {[%emt 0:00:30]} Rhd8 {[%emt 0:03:30]} 16. Be3 {[%emt 0:05:30]} Rd6 {[%emt 0:07:30]} 17. Bf1 {[%emt 0:03:30]} Bxf1 {[%emt 0:05:30]} 18. Rxf1 {[%emt 0:02:30]} Rad8 {[%emt 0:02:30]} 19. Nd2 {[%emt 0:00:30]} Na5 {[%emt 0:01:30]} 20. O-O-O {[%emt 0:01:30]} f5 {[%emt 0:06:30]} 21. Rde1 {[%emt 0:00:30]} R8d7 {[%emt 0:16:33]} 22. f4 {[%emt 0:03:30]} Rd3 {[%emt 0:01:21]} 23. exf5 {[%emt 0:03:30]} gxf5 {[%emt 0:00:49]} 24. fxe5 {[%emt 0:00:30]} Rxe3 {[%emt 0:02:19]} 25. Rxe3 {[%emt 0:00:00]} Bh6 {[%emt 0:00:07]} 26. Rf4 {[%emt 0:01:00]} Ke6 {[%emt 0:02:44]} 27. Kc2 {[%emt 0:02:30]} Rg7 {[%emt 0:02:50]} 28. Re2 {[%emt 0:08:30]} Bxf4 {[%emt 0:08:13]} 29. gxf4 {[%emt 0:00:30]} Rg4 {[%emt 0:00:01]} 30. Rf2 {[%emt 0:00:30]} Kd5 {[%emt 0:00:30]} 31. Kd3 {[%emt 0:00:30]} c4+ {[%emt 0:00:30]} 32. Ke3 {[%emt 0:00:30]} Nb7 {[%emt 0:00:30]} 33. b4 {[%emt 0:00:30]} a5 {[%emt 0:00:30]} 34. Nf3 {[%emt 0:00:30]} axb4 {[%emt 0:00:32]} 35. Rd2+ {[%emt 0:00:00]} Kc5 {[%emt 0:00:27]} 36. cxb4+ {[%emt 0:00:00]} Kxb4 {[%emt 0:00:14]} 37. Rb2+ {[%emt 0:00:30]} Ka5 {[%emt 0:00:44]} 38. Nd2 {[%emt 0:05:30]} c3 {[%emt 0:00:32]} 39. Nc4+ {[%emt 0:00:30]} Ka6 {[%emt 0:00:31]} 40. Rxb6+ {[%emt 0:00:30]} Ka7 {[%emt 0:00:03]} 41. Rb3 {[%emt 0:03:30]} c2 {[%emt 0:00:47]} 42. Rc3 {[%emt 0:00:00]} Rg2 {[%emt 0:00:31]} 43. Nd2 {[%emt 0:01:00]} Rxh2 {[%emt 0:01:05]} 44. Rxc2 {[%emt 0:00:00]} Nd8 {[%emt 0:00:04]} 45. Rc8 {[%emt 0:06:00]} Ne6 {[%emt 0:00:29]} 46. Re8 {[%emt 0:01:30]} Rh3+ {[%emt 0:00:30]} 47. Nf3 {[%emt 0:00:30]} Nc5 {[%emt 0:00:24]} 48. e6 {[%emt 0:01:30]} Rh6 {[%emt 0:00:33]} 49. Nd4 {[%emt 0:05:30]} Kb7 {[%emt 0:00:34]} 50. e7 {[%emt 0:00:30]} Rh3+ {[%emt 0:00:25]} 51. Nf3 {[%emt 0:01:30]} Rh6 {[%emt 0:00:22]} 52. Rb8+ {[%emt 0:00:00]} Kxb8 {[%emt 0:00:26]} 53. e8=Q+ {[%emt 0:00:00]} Kc7 {[%emt 0:00:24]} 54. Qe5+ {[%emt 0:00:30]} Kb6 {[%emt 0:00:17]} 55. Qxf5 {[%emt 0:00:00]} 1-0

[Event "5th Cesme Open 2017"]
[Site "Cesme"]
[Date "2017.06.14"]
[Round "5.20"]
[White "Aydincelebi, Kagan"]
[Black "Ozen, Bahadir"]
[Result "0-1"]
[ECO "B06"]
[WhiteElo "1992"]
[BlackElo "2332"]
[Annotator "NA"]
[PlyCount "124"]
[EventType "swiss"]
[EventCountry "TUR"]
[SourceTitle "playchess.com"]
[Source "ChessBase"]
[SourceQuality "1"]
[TimeControl "5400+30"]

{[%evp 8,115,42,40,71,50,32767,32767,32767,32767,32767,32767,32767,32767,7,32767,32767,32767,72,-20,31,44,26,0,0,-25,-45,-89,-86,-78,-82,-83,-81,-83,-71,-107,32767,-78,-87,-85,-79,-81,-66,32767,-66,-137,-77,32767,32767,32767,32767,-141,-45,32767,32767,32767,-95,32767,32767,-61,-41,32767,32767,-91,-99,-66,-64,-95,-89,-103,-82,-79,-39,-108,32767,32767,-107,-139,-115,-131,32767,32767,-115,-117,32767,32767,32767,32767,32767,32767,-143,-89,-54,-241,32767,-159,32767,32767,32767,-1824,-1197,-675,-1164,-890,-2105,-1572,-29981,-29985,-29986,-12843]} 1. e4 {[%emt 0:00:30]} g6 {[%emt 0:01:00]} 2. d4 {[%emt 0:00:00]} Bg7 {[%emt 0:00:30]} 3. Nc3 {[%emt 0:00:00]} d6 {[%emt 0:00:30]} 4. f4 {[%emt 0:00:00]} a6 {[%emt 0:00:00]} 5. Nf3 {[%emt 0:01:00] LiveBook: 915 Games} b5 {[%emt 0:00:30]} 6. Bd3 {[%emt 0:01:30]} Nd7 7. e5 {[%emt 0:05:30]} c5 {[%emt 0:04:00] B06: Modern Defence} 8. Be4 {[%emt 0:00:30]} Rb8 {[%emt 0:00:30]} 9. dxc5 {[%emt 0:00:30]} (9. Be3 cxd4 10. Bxd4 dxe5 11. fxe5 e6 12. O-O Ne7 13. Qe1 O-O 14. a4 b4 15. Ne2 {0-1 (49) Anand,V (2793)-Caruana,F (2829) London 2014}) 9... Nxc5 {[%emt 0:03:30]} 10. Bc6+ {[%emt 0:00:30]} Bd7 {[%emt 0:01:30]} 11. Bxd7+ {[%emt 0:00:30]} Qxd7 {[%emt 0:00:30]} 12. Be3 {[%emt 0:00:00]} Nh6 $146 {[%emt 0:06:30]} (12... Na4 $11 {remains equal.}) ({Predecessor:} 12... Rc8 13. Qd2 dxe5 14. fxe5 Qxd2+ 15. Kxd2 {0-1 (35) Plaskett,H (2483)-Solovjov,S (2436) playchess.com INT 2003}) 13. Qd2 {[%emt 0:09:00]} (13. Bxc5 $1 $14 dxc5 14. Qxd7+ Kxd7 15. O-O-O+ Kc6 16. Rhe1) 13... Ne6 {[%emt 0:06:30]} (13... Na4 $15 14. O-O-O Nxc3 15. Qxc3 O-O) 14. O-O-O {[%emt 0:02:30]} O-O {[%emt 0:00:30]} 15. h3 {[%emt 0:01:30]} Qb7 {[%emt 0:01:30]} 16. Nd5 {[%emt 0:12:30] [#]} dxe5 $1 {[%emt 0:07:30]} 17. fxe5 {[%emt 0:01:30]} Nf5 {[%emt 0:00:30]} 18. g4 {[%emt 0:01:30]} Nxe3 {[%emt 0:03:30]} 19. Qxe3 {[%emt 0:00:00]} Rfd8 {[%emt 0:04:30]} 20. Nc3 {[%emt 0:04:00]} b4 {[%emt 0:02:30]} 21. Ne2 {[%emt 0:10:30]} Rd5 {[%emt 0:04:30]} 22. Kb1 {[%emt 0:12:30]} Rbd8 {[%emt 0:01:30]} 23. Rxd5 {[%emt 0:00:30]} Qxd5 {[%emt 0:00:30]} 24. Re1 {[%emt 0:01:30]} a5 {[%emt 0:04:30]} 25. Nc1 {[%emt 0:04:30]} a4 {[%emt 0:01:30]} 26. Re2 {[%emt 0:03:30]} Qd1 {[%emt 0:01:30]} 27. Re1 {[%emt 0:01:30]} Qd5 {[%emt 0:00:30]} 28. Re2 {[%emt 0:00:30]} Qb5 $142 {[%emt 0:03:30]} 29. h4 {[%emt 0:06:30]} (29. Re1 a3) 29... Qc4 {[%emt 0:02:30]} ({Better is} 29... a3 $17 30. Rd2 Rxd2 31. Qxd2 axb2 32. Kxb2 Bxe5+ 33. Nxe5 Qxe5+ 34. Kb1 Qe4) 30. Qe4 {[%emt 0:01:30]} Qb5 {[%emt 0:00:00]} 31. g5 {[%emt 0:04:49]} Rd1 {[%emt 0:01:00]} 32. Re1 {[%emt 0:00:59]} Rxe1 {[%emt 0:01:30]} 33. Qxe1 {[%emt 0:01:03]} Qc4 {[%emt 0:04:30]} 34. Qe3 {[%emt 0:05:25]} Qf1 {[%emt 0:00:30]} 35. Qe2 {[%emt 0:03:48]} Qh1 {[%emt 0:00:00]} 36. Qe3 {[%emt 0:00:34] [#]} h6 $1 {[%emt 0:02:00]} 37. a3 {[%emt 0:01:52]} hxg5 {[%emt 0:00:30]} (37... bxa3 {[%emt 0:00:30]}) 38. hxg5 {[%emt 0:00:30]} bxa3 {[%emt 0:00:30]} 39. bxa3 {[%emt 0:00:30]} Qg2 {[%emt 0:00:30]} 40. Nd3 {[%emt 0:00:30]} Qg4 {[%emt 0:00:30]} 41. Nb2 {[%emt 0:02:08] [#]} Nxg5 $1 {[%emt 0:05:30]} 42. Qxg5 {[%emt 0:00:55]} Qxf3 {[%emt 0:00:30]} 43. Qxe7 {[%emt 0:00:00]} Qh1+ {[%emt 0:00:30]} 44. Ka2 {[%emt 0:00:12]} Qd5+ {[%emt 0:00:00]} 45. c4 {[%emt 0:00:26]} Qxe5 {[%emt 0:00:00]} 46. Qxe5 {[%emt 0:01:24]} Bxe5 {[%emt 0:00:00]} 47. Nxa4 {[%emt 0:00:24]} g5 {[%emt 0:03:00]} 48. Nc5 {[%emt 0:00:23]} g4 {[%emt 0:02:30]} 49. Nd3 {[%emt 0:00:20]} Bc7 {[%emt 0:07:30]} (49... Bd6 $19 50. a4 g3) 50. Kb2 $2 {[%emt 0:00:42]} (50. Kb3 $11 {and White has nothing to worry.}) 50... f5 {[%emt 0:01:12]} 51. Kc2 {[%emt 0:01:05]} Kf7 {[%emt 0:00:35]} 52. Kd2 {[%emt 0:01:35]} Kf6 {[%emt 0:01:18]} 53. Ke2 {[%emt 0:01:39]} f4 {[%emt 0:00:38]} 54. c5 {[%emt 0:00:39]} Kg5 {[%emt 0:04:22]} 55. a4 {[%emt 0:00:24]} (55. Kf1 $142 Kf5 56. c6) 55... Kf5 {[%emt 0:00:22]} 56. Nf2 {[%emt 0:01:41]} f3+ {[%emt 0:00:48]} 57. Kf1 {[%emt 0:00:21]} g3 {[%emt 0:00:25]} 58. Nd3 $19 {[%emt 0:00:15]} Ke4 {[%emt 0:02:50]} 59. Ne1 {[%emt 0:00:20]} Ba5 {[%emt 0:01:29]} 60. Nc2 {[%emt 0:00:27]} Kd3 {[%emt 0:00:40]} 61. Na3 {[%emt 0:00:29]} Bd2 {[%emt 0:00:36]} 62. c6 {[%emt 0:00:13]} Be3 {[%emt 0:00:07]} 0-1